Workbook

Sheet Trailing 12 Month
A1: 854 N KROME AVE | B1: 2024-12-01 | C1: 2025-01-01 | D1: 2025-02-01 | E1: 2025-03-01 | F1: 2025-04-01 | G1: 2025-05-01 | H1: 2025-06-01 | I1: 2025-07-01 | J1: 2025-08-01 | K1: 2025-09-01 | L1: 2025-10-01 | M1: 2025-11-01 | N1: T-12 TOTALS
A2: Income
A3: 852, 854, 856 | B3: 8738.22 | C3: 8738.22 | D3: 8738.22 | E3: 8738.22 | F3: 8738.22 | G3: 8738.22 | H3: 8738.22 | I3: 8738.22 | J3: 8738.22 | K3: 10660 | L3: 10350 | M3: 10350 | N3: =SUM(B3:M3) -> 110003.98
A4: 858 | B4: 3130.47 | C4: 3130.47 | D4: 3130.47 | E4: 3130.47 | F4: 3130.47 | G4: 3130.47 | H4: 3130.47 | I4: 3130.47 | J4: 3130.47 | K4: 3130.47 | L4: 3039.29 | M4: 3039.29 | N4: 37383.28
A5: 860 | B5: 3115.13 | C5: 3253.77 | D5: 3115.13 | E5: 3115.13 | F5: 3115.13 | G5: 3630.75 | H5: 3630.75 | I5: 3630.75 | J5: 3630.75 | K5: 3630.75 | L5: 3630.75 | M5: 3630.75 | N5: 41129.54
A6: 862 | B6: 2800.71 | C6: 2800.71 | D6: 2800.71 | E6: 2800.71 | F6: 2800.71 | G6: 2800.71 | H6: 2800.71 | I6: 0 | J6: 0 | K6: 3399 | L6: 3399 | M6: 3399 | N6: 29801.97
A7: 864 | B7: 3038.5 | C7: 3038.5 | D7: 3281.58 | E7: 3281.58 | F7: 3281.58 | G7: 3281.58 | H7: 3281.58 | I7: 3281.58 | J7: 3281.58 | K7: 3281.58 | L7: 3186 | M7: 3186 | N7: 38701.64
A8: 866 | B8: 3142.53 | C8: 3142.53 | D8: 3142.53 | E8: 3142.53 | F8: 3272.53 | G8: 3503.93 | H8: 3523.93 | I8: 3393.93 | J8: 3393.93 | K8: 3513.93 | L8: 3435.08 | M8: 3278.6 | N8: 39885.98
A9: 868 | B9: 2978.51 | C9: 2978.51 | D9: 2978.51 | E9: 3201.9 | F9: 3201.9 | G9: 3201.9 | H9: 3201.9 | I9: 3201.9 | J9: 3201.9 | K9: 3201.9 | L9: 3108.64 | M9: 3108.64 | N9: 37566.11
A10: 870 | B10: 3019.75 | C10: 3019.75 | D10: 3019.75 | E10: 3231.13 | F10: 3231.13 | G10: 3231.13 | H10: 3231.13 | I10: 3231.13 | J10: 3231.13 | K10: 3231.13 | L10: 3137.02 | M10: 3137.02 | N10: 37951.2
A11: 872 | B11: 3047.98 | C11: 3047.98 | D11: 3047.98 | E11: 3047.98 | F11: 3291.82 | G11: 3291.82 | H11: 3291.82 | I11: 3291.82 | J11: 3291.82 | K11: 3291.82 | L11: 3195.94 | M11: 3195.94 | N11: 38334.72
A12: 874 | B12: 2783.03 | C12: 2783.03 | D12: 2783.03 | E12: 2783.03 | F12: 2783.03 | G12: 2783.03 | H12: 3481.4 | I12: 3481.4 | J12: 3481.4 | K12: 3481.4 | L12: 3481.4 | M12: 3375 | N12: 37480.18
A13: 876 | B13: 3253.77 | C13: 3253.77 | D13: 3253.77 | E13: 3253.77 | F13: 3253.77 | G13: 3253.77 | H13: 3253.77 | I13: 3253.77 | J13: 3253.77 | K13: 3253.77 | L13: 3159 | M13: 3159 | N13: 38855.7
A14: 878, 880, 882 | B14: 9582.6 | C14: 9582.6 | D14: 9582.6 | E14: 9870.29 | F14: 9870.29 | G14: 9870.29 | H14: 9870.29 | I14: 9870.29 | J14: 9870.29 | K14: 9870.29 | L14: 9582.81 | M14: 9582.81 | N14: 117005.45
A15: 886, 888, 890, 892 | B15: 12676.63 | C15: 12676.63 | D15: 12676.62 | E15: 12676.62 | F15: 12676.62 | G15: 12676.62 | H15: 17098 | I15: 17407 | J15: 16648 | K15: 17407 | L15: 16900 | M15: 16900 | N15: 178419.74
A16: 894 | B16: 3218.75 | C16: 3218.75 | D16: 3218.75 | E16: 3218.75 | F16: 3218.75 | G16: 3218.75 | H16: 3218.75 | I16: 3991.25 | J16: 3476.25 | K16: 3476.25 | L16: 3476.25 | M16: 3395.08 | N16: 40346.33
A17: 896 | B17: 3218.81 | C17: 3218.81 | D17: 3218.81 | E17: 3218.81 | F17: 3218.81 | G17: 3476.31 | H17: 3476.31 | I17: 3476.31 | J17: 3476.31 | K17: 3476.31 | L17: 3375.06 | M17: 3375.06 | N17: 40225.72
A18: 30 - 32 NW 9 ST | B18: 6209.73 | C18: 6209.73 | D18: 5613.5 | E18: 5613.5 | F18: 5613.5 | G18: 6209.73 | H18: 6209.73 | I18: 6229.44 | J18: 6229.44 | K18: 6209.73 | L18: 6209.73 | M18: 6209.73 | N18: 72767.49
A20: Total Rent Revenue | B20: =SUM(B3:B18) -> 73955.12 | C20: 74093.76 | D20: 73601.96 | E20: 74324.42 | F20: 74698.26 | G20: 76299.01 | H20: 81438.76 | I20: 79609.26 | J20: 78335.26 | K20: 84515.33 | L20: 82665.97 | M20: 82321.92 | N20: =SUM(B20:M20) -> 935859.03
A22: Expense
A23: Garbage Collection | B23: -2200.41 | C23: -2212.81 | D23: -2206.78 | E23: -2207.27 | F23: -2204.93 | G23: -2206.42 | H23: -2230.21 | I23: -2231.83 | J23: -2230.59 | K23: -2653.26 | L23: -2666.5 | M23: -2641.48 | N23: -27892.49
A24: Electric Usage | B24: -233.09 | C24: -272.74 | D24: -247.09 | E24: -248.94 | F24: -240.83 | G24: -238 | H24: -264.53 | I24: -232 | J24: -231.4 | K24: -236.78 | L24: -264.38 | M24: -243.17 | N24: -2952.95
A25: Landscaping | B25: -600 | C25: -600 | D25: -600 | E25: -600 | F25: -600 | G25: -600 | H25: -600 | I25: -600 | J25: -600 | K25: -600 | L25: -600 | M25: -600 | N25: -7200
A26: Maintenance | B26: 0 | C26: -250 | D26: -500 | E26: 0 | F26: -500 | G26: 0 | H26: -750 | I26: -250 | J26: 0 | K26: -500 | L26: -250 | M26: -500 | N26: -3500
A28: Sales Tax | B28: -1922.23 | C28: -2130.28 | D28: -2143.75 | E28: -2164.79 | F28: -2175.68 | G28: -2222.3 | H28: -2372 | I28: -2318.72 | J28: -2281.61 | K28: -2461.61 | L28: 0 | M28: 0 | N28: -22192.97
A30: Insurance, Property | B30: 0 | C30: 0 | D30: 0 | E30: 0 | F30: 0 | G30: 0 | H30: 0 | I30: 0 | J30: 0 | K30: 0 | L30: -31379.2 | M30: 0 | N30: -31379.2
A31: Tax, Property | B31: 0 | C31: 0 | D31: 0 | E31: 0 | F31: 0 | G31: 0 | H31: 0 | I31: 0 | J31: 0 | K31: 0 | L31: -53421.16 | M31: 0 | N31: -53421.16
A33: Total Expenditures | B33: =SUM(B23:B31) -> -4955.73 | C33: =SUM(C23:C31) -> -5465.83 | D33: -5697.62 | E33: -5221 | F33: -5721.44 | G33: -5266.72 | H33: -6216.74 | I33: -5632.55 | J33: -5343.6 | K33: -6451.65 | L33: -88581.24 | M33: -3984.65 | N33: -148538.77
A35: Profit Margin | B35: =(B36/B20) -> 0.932990035 | C35: =(C36/C20) -> 0.9262308999 | D35: 0.9225887463 | E35: 0.9297539086 | F35: 0.9234059803 | G35: 0.9309726299 | H35: 0.9236636216 | I35: 0.9292475524 | J35: 0.9317855076 | K35: 0.9236629615 | L35: -0.07155628852 | M35: 0.9515967315 | N35: 0.8412808284
A36: MONTHLY PROFIT | B36: =B20+B33 -> 68999.39 | C36: =C20+C33 -> 68627.93 | D36: =D20+D33 -> 67904.34 | E36: =E20+E33 -> 69103.42 | F36: =F20+F33 -> 68976.82 | G36: =G20+G33 -> 71032.29 | H36: =H20+H33 -> 75222.02 | I36: =I20+I33 -> 73976.71 | J36: =J20+J33 -> 72991.66 | K36: =K20+K33 -> 78063.68 | L36: =L20+L33 -> -5915.27 | M36: =M20+M33 -> 78337.27 | N36: =SUM(B36:M36) -> 787320.26
